[Event "Late-Titled-Tuesday-Blitz-September-12-2023"]
[Site "Chess.com"]
[Date "2023.09.12"]
[Round "10"]
[White "ChessDokmus"]
[Black "AsaHoffmann"]
[Result "0-1"]
[WhiteElo "2207"]
[BlackElo "2341"]
[TimeControl "180+1"]
[EndTime "15:50:24 PDT"]
[Termination "AsaHoffmann won by resignation"]

1. e4 {[%clk 0:02:45.8]} 1... d6 {[%clk 0:02:49.5]} 2. d4 {[%clk 0:02:43.2]}
2... Nf6 {[%clk 0:02:47.4]} 3. Nc3 {[%clk 0:02:38.5]} 3... c6 {[%clk 0:02:45.3]}
4. Be2 {[%clk 0:02:34.2]} 4... Nbd7 {[%clk 0:02:43.5]} 5. g4 {[%clk 0:02:28.8]}
5... e5 {[%clk 0:02:42.4]} 6. g5 {[%clk 0:02:25.9]} 6... Ng8 {[%clk 0:02:39.3]}
7. dxe5 {[%clk 0:02:10.4]} 7... dxe5 {[%clk 0:02:38]} 8. Be3 {[%clk 0:02:06.3]}
8... h6 {[%clk 0:02:30.7]} 9. gxh6 {[%clk 0:01:55.8]} 9... Nxh6 {[%clk
0:02:27.4]} 10. Qd2 {[%clk 0:01:52.2]} 10... Qa5 {[%clk 0:02:23.1]} 11. O-O-O
{[%clk 0:01:50.6]} 11... Bb4 {[%clk 0:02:21.8]} 12. Kb1 {[%clk 0:01:48]} 12...
Bxc3 {[%clk 0:02:21.5]} 13. Qxc3 {[%clk 0:01:47.8]} 13... Qxc3 {[%clk
0:02:21.1]} 14. bxc3 {[%clk 0:01:48]} 14... Nf6 {[%clk 0:02:19.3]} 15. f3 {[%clk
0:01:46.9]} 15... Be6 {[%clk 0:02:18.5]} 16. Bd3 {[%clk 0:01:41.2]} 16... Nhg8
{[%clk 0:02:13.5]} 17. Ne2 {[%clk 0:01:40.7]} 17... Ne7 {[%clk 0:02:13.1]} 18.
Ka1 {[%clk 0:01:36.9]} 18... Rh3 {[%clk 0:02:10.5]} 19. Ng3 {[%clk 0:01:33.9]}
19... b6 {[%clk 0:02:04.2]} 20. Bf1 {[%clk 0:01:15.5]} 20... Rh8 {[%clk
0:01:55.5]} 21. h4 {[%clk 0:01:06]} 21... Rd8 {[%clk 0:01:53.7]} 22. Rxd8+
{[%clk 0:01:01.6]} 22... Kxd8 {[%clk 0:01:53]} 23. Be2 {[%clk 0:00:49]} 23...
Kc7 {[%clk 0:01:52.2]} 24. h5 {[%clk 0:00:44.1]} 24... g6 {[%clk 0:01:23.2]} 25.
Bg5 {[%clk 0:00:41.9]} 25... Nfg8 {[%clk 0:01:17.9]} 26. hxg6 {[%clk 0:00:26.6]}
26... Rxh1+ {[%clk 0:01:17.2]} 27. Nxh1 {[%clk 0:00:26.1]} 27... Nxg6 {[%clk
0:01:15.6]} 28. Ng3 {[%clk 0:00:21.5]} 28... f6 {[%clk 0:01:15.2]} 29. Be3
{[%clk 0:00:20.2]} 29... N8e7 {[%clk 0:01:14.2]} 30. Nh5 {[%clk 0:00:19.5]}
30... f5 {[%clk 0:01:11.3]} 31. exf5 {[%clk 0:00:18.5]} 31... Bxf5 {[%clk
0:01:09.9]} 32. Bd2 {[%clk 0:00:19.4]} 32... Bxc2 {[%clk 0:01:07.8]} 33. Nf6
{[%clk 0:00:19.6]} 33... Nd5 {[%clk 0:01:05.6]} 34. Ng4 {[%clk 0:00:19]} 34...
Kd6 {[%clk 0:01:00]} 35. c4 {[%clk 0:00:19.1]} 35... Ndf4 {[%clk 0:00:58.4]} 36.
Bb4+ {[%clk 0:00:18.6]} 36... c5 {[%clk 0:00:56.7]} 37. Bc3 {[%clk 0:00:16.9]}
37... Bf5 {[%clk 0:00:55.2]} 38. Bd1 {[%clk 0:00:14.8]} 38... Bxg4 {[%clk
0:00:49.4]} 39. fxg4 {[%clk 0:00:15.7]} 39... e4 {[%clk 0:00:48.9]} 40. Kb2
{[%clk 0:00:16]} 40... e3 {[%clk 0:00:48.8]} 41. Bf3 {[%clk 0:00:14.1]} 41...
Ne5 {[%clk 0:00:48.1]} 42. Bxe5+ {[%clk 0:00:13.9]} 42... Kxe5 {[%clk
0:00:47.8]} 43. Kc3 {[%clk 0:00:14.6]} 43... Nh3 {[%clk 0:00:42]} 44. Kd3 {[%clk
0:00:14.4]} 44... Kf4 {[%clk 0:00:42.1]} 45. Be2 {[%clk 0:00:14.3]} 45... Nf2+
{[%clk 0:00:40.9]} 46. Kc2 {[%clk 0:00:13.5]} 46... Nxg4 {[%clk 0:00:40.7]} 47.
Kd3 {[%clk 0:00:13.3]} 47... Ne5+ {[%clk 0:00:40.3]} 48. Kc3 {[%clk 0:00:13.3]}
48... Ke4 {[%clk 0:00:39.5]} 49. a3 {[%clk 0:00:12.7]} 49... Nc6 {[%clk
0:00:39.3]} 50. Bh5 {[%clk 0:00:11.6]} 50... Nd4 {[%clk 0:00:39]} 51. Bg6+
{[%clk 0:00:10.5]} 51... Kf3 {[%clk 0:00:38.8]} 52. Bh5+ {[%clk 0:00:10]} 52...
Kf2 {[%clk 0:00:38.6]} 53. Kd3 {[%clk 0:00:10.3]} 53... e2 {[%clk 0:00:37.7]}
54. Bxe2 {[%clk 0:00:10.9]} 54... Nxe2 {[%clk 0:00:37.2]} 55. Ke4 {[%clk
0:00:11.8]} 55... Nd4 {[%clk 0:00:35.7]} 56. Kd5 {[%clk 0:00:12.2]} 56... Ke3
{[%clk 0:00:35.3]} 57. Kd6 {[%clk 0:00:12.5]} 57... Kd3 {[%clk 0:00:35.4]} 58.
Kc7 {[%clk 0:00:13.1]} 58... Kxc4 {[%clk 0:00:35.4]} 59. Kb7 {[%clk 0:00:13.8]}
59... Kb3 {[%clk 0:00:35.3]} 60. Kxa7 {[%clk 0:00:14.2]} 60... Kxa3 {[%clk
0:00:35.4]} 61. Kxb6 {[%clk 0:00:14.8]} 61... c4 {[%clk 0:00:35]} 62. Kc5 {[%clk
0:00:15.7]} 62... c3 {[%clk 0:00:35.1]} 63. Kxd4 {[%clk 0:00:16.2]} 63... c2
{[%clk 0:00:35.1]} 0-1

[Event "Late-Titled-Tuesday-Blitz-September-12-2023"]
[Site "Chess.com"]
[Date "2023.09.12"]
[Round "10"]
[White "santosalberto1987"]
[Black "Dr_crypt"]
[Result "0-1"]
[WhiteElo "2532"]
[BlackElo "2444"]
[TimeControl "180+1"]
[EndTime "15:50:26 PDT"]
[Termination "Dr_crypt won by resignation"]

1. e4 {[%clk 0:03:00.9]} 1... d5 {[%clk 0:02:59.7]} 2. exd5 {[%clk 0:03:00.9]}
2... Qxd5 {[%clk 0:03:00.6]} 3. Nf3 {[%clk 0:03:01.2]} 3... Bg4 {[%clk
0:02:56.2]} 4. Be2 {[%clk 0:03:01.1]} 4... c5 {[%clk 0:02:53]} 5. d4 {[%clk
0:02:59.5]} 5... cxd4 {[%clk 0:02:52.8]} 6. c3 {[%clk 0:02:44.1]} 6... d3 {[%clk
0:02:40.3]} 7. Bxd3 {[%clk 0:02:37]} 7... Bxf3 {[%clk 0:02:39.3]} 8. Qxf3 {[%clk
0:02:32.8]} 8... Qxf3 {[%clk 0:02:38.5]} 9. gxf3 {[%clk 0:02:33.7]} 9... Nc6
{[%clk 0:02:38.2]} 10. Na3 {[%clk 0:02:31.7]} 10... Nf6 {[%clk 0:02:32.3]} 11.
O-O {[%clk 0:02:28.1]} 11... e6 {[%clk 0:02:30.8]} 12. Nb5 {[%clk 0:02:27.5]}
12... O-O-O {[%clk 0:02:29.1]} 13. Bc2 {[%clk 0:02:22.5]} 13... a6 {[%clk
0:02:27.7]} 14. Na3 {[%clk 0:02:19.9]} 14... Bxa3 {[%clk 0:02:22.5]} 15. bxa3
{[%clk 0:02:20.8]} 15... Ne5 {[%clk 0:02:21.8]} 16. Kg2 {[%clk 0:02:19.5]} 16...
Nc4 {[%clk 0:01:38.9]} 17. Bf4 {[%clk 0:02:11.2]} 17... Nd5 {[%clk 0:01:38.4]}
18. Bg3 {[%clk 0:02:09.8]} 18... f5 {[%clk 0:01:31.9]} 19. Bb3 {[%clk
0:02:08.3]} 19... Nd2 {[%clk 0:01:30.3]} 20. Rfd1 {[%clk 0:02:08.2]} 20... Nxb3
{[%clk 0:01:29.7]} 21. axb3 {[%clk 0:02:09.1]} 21... f4 {[%clk 0:01:29.7]} 22.
Bh4 {[%clk 0:02:07.5]} 22... g5 {[%clk 0:01:29.8]} 23. c4 {[%clk 0:02:01.6]}
23... Nc7 {[%clk 0:01:19.3]} 24. Bxg5 {[%clk 0:01:47]} 24... Rxd1 {[%clk
0:01:18.4]} 25. Rxd1 {[%clk 0:01:46.9]} 25... Rg8 {[%clk 0:01:18.9]} 26. h4
{[%clk 0:01:43.1]} 26... h6 {[%clk 0:01:18.9]} 27. Kh3 {[%clk 0:01:30.4]} 27...
hxg5 {[%clk 0:01:19.4]} 28. Rg1 {[%clk 0:01:30]} 28... e5 {[%clk 0:01:13.3]} 29.
Rxg5 {[%clk 0:01:27]} 29... Rxg5 {[%clk 0:01:11.8]} 30. hxg5 {[%clk 0:01:27.9]}
30... Kd7 {[%clk 0:01:11.9]} 31. Kg4 {[%clk 0:01:28.6]} 31... Ke6 {[%clk
0:01:12.3]} 32. b4 {[%clk 0:01:26.6]} 32... Ne8 {[%clk 0:01:03.3]} 33. c5 {[%clk
0:01:23.1]} 33... Ng7 {[%clk 0:00:49.7]} 34. a4 {[%clk 0:01:21.5]} 34... a5
{[%clk 0:00:47.1]} 35. b5 {[%clk 0:00:58.7]} 35... Kd5 {[%clk 0:00:38.6]} 36. g6
{[%clk 0:00:56.9]} 36... Kxc5 {[%clk 0:00:36.1]} 37. Kg5 {[%clk 0:00:56.9]}
37... Kd6 {[%clk 0:00:34.8]} 38. Kf6 {[%clk 0:00:56.6]} 38... Ne8+ {[%clk
0:00:32]} 39. Kf7 {[%clk 0:00:56.3]} 39... Kd7 {[%clk 0:00:32.3]} 40. g7 {[%clk
0:00:53.7]} 40... Nxg7 {[%clk 0:00:32]} 41. Kxg7 {[%clk 0:00:54.6]} 41... Ke6
{[%clk 0:00:25.8]} 42. Kg6 {[%clk 0:00:46.8]} 42... Kd5 {[%clk 0:00:23.4]} 43.
Kf5 {[%clk 0:00:46.5]} 43... b6 {[%clk 0:00:24.1]} 44. Kg5 {[%clk 0:00:13.1]}
44... Kc5 {[%clk 0:00:24.1]} 45. Kf5 {[%clk 0:00:13.2]} 45... Kb4 {[%clk
0:00:24.4]} 46. Kxe5 {[%clk 0:00:13.7]} 46... Kxa4 {[%clk 0:00:25]} 47. Kxf4
{[%clk 0:00:14.6]} 47... Kxb5 {[%clk 0:00:24.1]} 48. Kg5 {[%clk 0:00:14.2]}
48... a4 {[%clk 0:00:24.1]} 49. f4 {[%clk 0:00:15.1]} 49... a3 {[%clk
0:00:24.6]} 50. f5 {[%clk 0:00:16]} 50... a2 {[%clk 0:00:25.1]} 51. f6 {[%clk
0:00:16.9]} 51... a1=Q {[%clk 0:00:25.6]} 52. f7 {[%clk 0:00:17.8]} 52... Qg7+
{[%clk 0:00:25.5]} 0-1

[Event "Late-Titled-Tuesday-Blitz-September-12-2023"]
[Site "Chess.com"]
[Date "2023.09.12"]
[Round "10"]
[White "NotFischer"]
[Black "ace_mar"]
[Result "0-1"]
[WhiteElo "2290"]
[BlackElo "2519"]
[TimeControl "180+1"]
[EndTime "15:50:34 PDT"]
[Termination "ace_mar won on time"]

1. e4 {[%clk 0:03:00.9]} 1... c5 {[%clk 0:02:59.7]} 2. Nf3 {[%clk 0:03:00.3]}
2... d6 {[%clk 0:03:00.3]} 3. d4 {[%clk 0:03:00.1]} 3... cxd4 {[%clk 0:03:01.2]}
4. Nxd4 {[%clk 0:03:00.5]} 4... Nf6 {[%clk 0:03:01.9]} 5. Nc3 {[%clk 0:03:00.7]}
5... Nc6 {[%clk 0:03:02.7]} 6. Bc4 {[%clk 0:02:54.4]} 6... e6 {[%clk 0:03:02.7]}
7. Bb3 {[%clk 0:02:53.8]} 7... Be7 {[%clk 0:03:02]} 8. O-O {[%clk 0:02:51.8]}
8... O-O {[%clk 0:03:00.5]} 9. Be3 {[%clk 0:02:49.8]} 9... a6 {[%clk 0:02:55.1]}
10. a4 {[%clk 0:02:46.1]} 10... Qc7 {[%clk 0:02:51.8]} 11. Qf3 {[%clk
0:02:44.2]} 11... Ne5 {[%clk 0:02:45.7]} 12. Qg3 {[%clk 0:02:31.2]} 12... Nc4
{[%clk 0:02:45.8]} 13. Bh6 {[%clk 0:02:30.7]} 13... Ne8 {[%clk 0:02:38.7]} 14.
Bxc4 {[%clk 0:01:52.8]} 14... Qxc4 {[%clk 0:02:39.6]} 15. Rad1 {[%clk
0:01:49.4]} 15... Bf6 {[%clk 0:02:24.1]} 16. Nde2 {[%clk 0:01:40]} 16... b6
{[%clk 0:02:18.1]} 17. Be3 {[%clk 0:01:36]} 17... b5 {[%clk 0:02:13.1]} 18. axb5
{[%clk 0:01:26]} 18... axb5 {[%clk 0:02:13.3]} 19. Bd4 {[%clk 0:01:12.1]} 19...
b4 {[%clk 0:02:10.7]} 20. Bxf6 {[%clk 0:01:09.5]} 20... Nxf6 {[%clk 0:02:11.6]}
21. Rd4 {[%clk 0:01:08.7]} 21... Qc5 {[%clk 0:02:05.7]} 22. Nd1 {[%clk
0:01:06.3]} 22... Qxc2 {[%clk 0:01:57.5]} 23. Qe3 {[%clk 0:00:52.6]} 23... Ba6
{[%clk 0:01:42.7]} 24. Re1 {[%clk 0:00:49.1]} 24... d5 {[%clk 0:01:28.7]} 25. e5
{[%clk 0:00:42.2]} 25... Ne4 {[%clk 0:01:24.5]} 26. Rxb4 {[%clk 0:00:35.7]}
26... Rfc8 {[%clk 0:01:01.1]} 27. Nd4 {[%clk 0:00:34.5]} 27... Qc5 {[%clk
0:00:57.7]} 28. Rb3 {[%clk 0:00:23.8]} 28... Bc4 {[%clk 0:00:56.3]} 29. Ra3
{[%clk 0:00:20.5]} 29... Rxa3 {[%clk 0:00:55.6]} 30. bxa3 {[%clk 0:00:21.4]}
30... Ra8 {[%clk 0:00:53.9]} 31. Nc2 {[%clk 0:00:17.3]} 31... Qxe3 {[%clk
0:00:48.4]} 32. Rxe3 {[%clk 0:00:17.5]} 32... Nc5 {[%clk 0:00:39.8]} 33. Nb2
{[%clk 0:00:17.1]} 33... Bb3 {[%clk 0:00:39.1]} 34. f3 {[%clk 0:00:13.9]} 34...
Bxc2 {[%clk 0:00:39]} 35. Rc3 {[%clk 0:00:12.6]} 35... Nd7 {[%clk 0:00:21.9]}
36. Rxc2 {[%clk 0:00:12.6]} 36... Nxe5 {[%clk 0:00:22.4]} 37. a4 {[%clk
0:00:10]} 37... f6 {[%clk 0:00:22.5]} 38. Kf2 {[%clk 0:00:09.2]} 38... Nd7
{[%clk 0:00:20.4]} 39. Rc3 {[%clk 0:00:04.8]} 39... Nb6 {[%clk 0:00:20.2]} 40.
Ra3 {[%clk 0:00:04.9]} 40... Ra5 {[%clk 0:00:20.2]} 41. Ke3 {[%clk 0:00:04.8]}
41... Rxa4 {[%clk 0:00:18.5]} 42. Rxa4 {[%clk 0:00:03.2]} 42... Nxa4 {[%clk
0:00:19.1]} 43. Nxa4 {[%clk 0:00:03.8]} 43... Kf7 {[%clk 0:00:19.2]} 44. Nc3
{[%clk 0:00:04.4]} 44... Ke7 {[%clk 0:00:19]} 45. f4 {[%clk 0:00:05]} 45... Kd6
{[%clk 0:00:19.2]} 46. g3 {[%clk 0:00:05.5]} 46... Kc5 {[%clk 0:00:19.8]} 47.
Kd3 {[%clk 0:00:06.1]} 47... h5 {[%clk 0:00:19]} 48. Ne2 {[%clk 0:00:06.3]}
48... e5 {[%clk 0:00:18]} 49. fxe5 {[%clk 0:00:06.5]} 49... fxe5 {[%clk
0:00:18.9]} 50. Ke3 {[%clk 0:00:07]} 50... Kc4 {[%clk 0:00:18.9]} 51. h4 {[%clk
0:00:06.5]} 51... d4+ {[%clk 0:00:17.2]} 52. Ke4 {[%clk 0:00:06.7]} 52... d3
{[%clk 0:00:17]} 53. Ng1 {[%clk 0:00:04.6]} 53... d2 {[%clk 0:00:16.7]} 0-1

[Event "Late-Titled-Tuesday-Blitz-September-12-2023"]
[Site "Chess.com"]
[Date "2023.09.12"]
[Round "10"]
[White "vi_pranav"]
[Black "oskariot"]
[Result "0-1"]
[WhiteElo "2977"]
[BlackElo "2723"]
[TimeControl "180+1"]
[EndTime "15:50:35 PDT"]
[Termination "oskariot won on time"]

1. e4 {[%clk 0:03:00.9]} 1... e5 {[%clk 0:02:58.4]} 2. Nf3 {[%clk 0:03:00.7]}
2... Nc6 {[%clk 0:02:58.7]} 3. Bb5 {[%clk 0:03:00.9]} 3... a6 {[%clk 0:02:59.1]}
4. Ba4 {[%clk 0:03:00.9]} 4... Nf6 {[%clk 0:02:58.8]} 5. O-O {[%clk 0:03:00.9]}
5... Be7 {[%clk 0:02:59.4]} 6. d3 {[%clk 0:03:00.4]} 6... d6 {[%clk 0:02:56.2]}
7. c4 {[%clk 0:02:57.9]} 7... Bg4 {[%clk 0:02:53]} 8. Nc3 {[%clk 0:02:55.2]}
8... O-O {[%clk 0:02:52.1]} 9. h3 {[%clk 0:02:53.2]} 9... Bxf3 {[%clk
0:02:50.6]} 10. Qxf3 {[%clk 0:02:52.4]} 10... Nd7 {[%clk 0:02:50.7]} 11. Be3
{[%clk 0:02:39.3]} 11... Nd4 {[%clk 0:02:39.3]} 12. Bxd4 {[%clk 0:02:37.8]}
12... exd4 {[%clk 0:02:40.2]} 13. Nd5 {[%clk 0:02:38.7]} 13... c6 {[%clk
0:02:40.9]} 14. Nxe7+ {[%clk 0:02:36.7]} 14... Qxe7 {[%clk 0:02:41.8]} 15. Qg3
{[%clk 0:02:37]} 15... b5 {[%clk 0:02:32.3]} 16. Bc2 {[%clk 0:02:32.5]} 16...
bxc4 {[%clk 0:02:30.2]} 17. dxc4 {[%clk 0:02:33.4]} 17... c5 {[%clk 0:02:20.2]}
18. f4 {[%clk 0:02:29.4]} 18... Rab8 {[%clk 0:02:18.9]} 19. b3 {[%clk
0:02:29.4]} 19... Rfe8 {[%clk 0:02:03.2]} 20. Rae1 {[%clk 0:02:27.9]} 20... Nf8
{[%clk 0:02:03.6]} 21. Bd3 {[%clk 0:02:15.7]} 21... a5 {[%clk 0:02:02.2]} 22. e5
{[%clk 0:01:55.4]} 22... dxe5 {[%clk 0:01:56.4]} 23. Rxe5 {[%clk 0:01:56.3]}
23... Qd6 {[%clk 0:01:14.6]} 24. Rd5 {[%clk 0:01:46.5]} 24... Qc7 {[%clk
0:01:11.7]} 25. Rf3 {[%clk 0:01:43]} 25... Rbd8 {[%clk 0:00:59]} 26. Rh5 {[%clk
0:01:28.1]} 26... g6 {[%clk 0:00:52.3]} 27. Kh2 {[%clk 0:01:19.6]} 27... Re3
{[%clk 0:00:44.6]} 28. Rg5 {[%clk 0:00:59.9]} 28... Rde8 {[%clk 0:00:25.5]} 29.
Bf1 {[%clk 0:00:29.3]} 29... Rxf3 {[%clk 0:00:20.5]} 30. Qxf3 {[%clk 0:00:30.2]}
30... Re3 {[%clk 0:00:17.8]} 31. Qf2 {[%clk 0:00:25.3]} 31... Ne6 {[%clk
0:00:17.1]} 32. Rg4 {[%clk 0:00:22.3]} 32... f5 {[%clk 0:00:12.2]} 33. Rh4
{[%clk 0:00:21.8]} 33... Qe7 {[%clk 0:00:06.2]} 34. g4 {[%clk 0:00:16.1]} 34...
fxg4 {[%clk 0:00:02.1]} 35. Rxg4 {[%clk 0:00:12.4]} 35... Qf6 {[%clk 0:00:02]}
36. Bg2 {[%clk 0:00:11.5]} 36... Kh8 {[%clk 0:00:01.9]} 37. Bd5 {[%clk
0:00:05.5]} 37... Ng7 {[%clk 0:00:02.3]} 38. Bg2 {[%clk 0:00:03.1]} 38... Nf5
{[%clk 0:00:02.6]} 39. Rg5 {[%clk 0:00:03.3]} 39... Qe7 {[%clk 0:00:02.8]} 40.
Bf3 {[%clk 0:00:02.3]} 40... Re1 {[%clk 0:00:02.6]} 41. Bg4 {[%clk 0:00:02.4]}
41... d3 {[%clk 0:00:02.7]} 42. Bxf5 {[%clk 0:00:01.5]} 42... Re2 {[%clk
0:00:02.9]} 43. Qxe2 {[%clk 0:00:01.2]} 43... Qxe2+ {[%clk 0:00:02.3]} 44. Rg2
{[%clk 0:00:01.4]} 44... gxf5 {[%clk 0:00:03.2]} 0-1

[Event "Late-Titled-Tuesday-Blitz-September-12-2023"]
[Site "Chess.com"]
[Date "2023.09.12"]
[Round "10"]
[White "Beca95"]
[Black "Maksimus1998"]
[Result "1/2-1/2"]
[WhiteElo "2950"]
[BlackElo "2599"]
[TimeControl "180+1"]
[EndTime "15:50:45 PDT"]
[Termination "Game drawn by stalemate"]

1. c4 {[%clk 0:03:00.9]} 1... e6 {[%clk 0:02:58.4]} 2. Nc3 {[%clk 0:03:01.3]}
2... d5 {[%clk 0:02:58.1]} 3. d4 {[%clk 0:03:02]} 3... Bb4 {[%clk 0:02:57.6]} 4.
a3 {[%clk 0:03:00.5]} 4... Bxc3+ {[%clk 0:02:57.4]} 5. bxc3 {[%clk 0:03:01.4]}
5... Nf6 {[%clk 0:02:56.8]} 6. f3 {[%clk 0:03:00.9]} 6... O-O {[%clk 0:02:56.8]}
7. cxd5 {[%clk 0:02:47.5]} 7... exd5 {[%clk 0:02:55.9]} 8. e3 {[%clk 0:02:47.9]}
8... b6 {[%clk 0:02:56.5]} 9. Bd3 {[%clk 0:02:44.9]} 9... c5 {[%clk 0:02:57]}
10. Ne2 {[%clk 0:02:44.2]} 10... Re8 {[%clk 0:02:56.7]} 11. O-O {[%clk
0:02:43.7]} 11... Ba6 {[%clk 0:02:57.3]} 12. Ng3 {[%clk 0:02:40.3]} 12... Bxd3
{[%clk 0:02:57.3]} 13. Qxd3 {[%clk 0:02:41.1]} 13... Nc6 {[%clk 0:02:58.1]} 14.
Bb2 {[%clk 0:02:41.4]} 14... Rc8 {[%clk 0:02:48.6]} 15. Rad1 {[%clk 0:02:36.5]}
15... h5 {[%clk 0:02:34.5]} 16. e4 {[%clk 0:02:31.6]} 16... h4 {[%clk
0:02:33.7]} 17. Nf5 {[%clk 0:02:31.5]} 17... cxd4 {[%clk 0:02:30]} 18. cxd4
{[%clk 0:02:30.9]} 18... dxe4 {[%clk 0:02:15.5]} 19. fxe4 {[%clk 0:02:31.8]}
19... Rxe4 {[%clk 0:02:14.1]} 20. Nxg7 {[%clk 0:02:31.4]} 20... Kxg7 {[%clk
0:02:06.8]} 21. Rxf6 {[%clk 0:02:21.9]} 21... Qxf6 {[%clk 0:02:07.7]} 22. Qxe4
{[%clk 0:02:21]} 22... Ne7 {[%clk 0:02:08.1]} 23. Qg4+ {[%clk 0:02:20.1]} 23...
Kf8 {[%clk 0:01:50.5]} 24. Rf1 {[%clk 0:01:51.6]} 24... Qg6 {[%clk 0:01:40.8]}
25. Qxg6 {[%clk 0:01:29.7]} 25... Nxg6 {[%clk 0:01:41.7]} 26. d5 {[%clk
0:01:30.2]} 26... Ke7 {[%clk 0:01:40.5]} 27. d6+ {[%clk 0:01:22.5]} 27... Kxd6
{[%clk 0:01:34.6]} 28. Rxf7 {[%clk 0:01:22.3]} 28... Rc2 {[%clk 0:01:29.2]} 29.
Bd4 {[%clk 0:01:16.7]} 29... Kd5 {[%clk 0:01:23.7]} 30. Bg7 {[%clk 0:00:50.7]}
30... Ke4 {[%clk 0:01:09.6]} 31. Bh6 {[%clk 0:00:39.5]} 31... Ra2 {[%clk
0:00:54.9]} 32. h3 {[%clk 0:00:19.8]} 32... Rxa3 {[%clk 0:00:49.2]} 33. Rf6
{[%clk 0:00:20.4]} 33... Ne5 {[%clk 0:00:40]} 34. Rf4+ {[%clk 0:00:19.4]} 34...
Kd5 {[%clk 0:00:39]} 35. Rxh4 {[%clk 0:00:19.5]} 35... b5 {[%clk 0:00:37.3]} 36.
Rh5 {[%clk 0:00:20]} 36... Ke6 {[%clk 0:00:24.5]} 37. Bg7 {[%clk 0:00:20.1]}
37... Ng6 {[%clk 0:00:18.7]} 38. Rxb5 {[%clk 0:00:18.8]} 38... Nf4 {[%clk
0:00:18.5]} 39. Kh2 {[%clk 0:00:11.8]} 39... Ra2 {[%clk 0:00:13.5]} 40. Rb2
{[%clk 0:00:11.7]} 40... Rxb2 {[%clk 0:00:13.8]} 41. Bxb2 {[%clk 0:00:12.1]}
41... a5 {[%clk 0:00:14.7]} 42. g4 {[%clk 0:00:09]} 42... a4 {[%clk 0:00:13.6]}
43. Kg3 {[%clk 0:00:09.3]} 43... Nd3 {[%clk 0:00:13.1]} 44. Ba3 {[%clk
0:00:07.6]} 44... Ne1 {[%clk 0:00:12.8]} 45. h4 {[%clk 0:00:03.4]} 45... Nc2
{[%clk 0:00:13.1]} 46. Bb2 {[%clk 0:00:03.9]} 46... a3 {[%clk 0:00:13.5]} 47.
Bc3 {[%clk 0:00:04.3]} 47... a2 {[%clk 0:00:14]} 48. h5 {[%clk 0:00:04.7]} 48...
a1=Q {[%clk 0:00:12.5]} 49. Bxa1 {[%clk 0:00:04.6]} 49... Nxa1 {[%clk
0:00:13.4]} 50. Kf4 {[%clk 0:00:04.9]} 50... Kf7 {[%clk 0:00:12]} 51. Kf5 {[%clk
0:00:04]} 51... Nb3 {[%clk 0:00:11.6]} 52. g5 {[%clk 0:00:04.4]} 52... Nd4+
{[%clk 0:00:11.8]} 53. Ke5 {[%clk 0:00:05]} 53... Nf3+ {[%clk 0:00:11.7]} 54.
Kf4 {[%clk 0:00:05.6]} 54... Nxg5 {[%clk 0:00:12.3]} 55. Kxg5 {[%clk 0:00:06.5]}
55... Kg7 {[%clk 0:00:13]} 56. h6+ {[%clk 0:00:07.3]} 56... Kh7 {[%clk
0:00:13.5]} 57. Kh5 {[%clk 0:00:08.2]} 57... Kh8 {[%clk 0:00:14.2]} 58. Kg6
{[%clk 0:00:09.1]} 58... Kg8 {[%clk 0:00:14.6]} 59. h7+ {[%clk 0:00:10]} 59...
Kh8 {[%clk 0:00:15.5]} 60. Kh6 {[%clk 0:00:10.9]} 1/2-1/2

[Event "Late-Titled-Tuesday-Blitz-September-12-2023"]
[Site "Chess.com"]
[Date "2023.09.12"]
[Round "10"]
[White "Inepton_Fermion"]
[Black "tteshan"]
[Result "1-0"]
[WhiteElo "2383"]
[BlackElo "2515"]
[TimeControl "180+1"]
[EndTime "15:50:49 PDT"]
[Termination "Inepton_Fermion won by resignation"]

1. Nf3 {[%clk 0:03:00.9]} 1... c5 {[%clk 0:02:59.9]} 2. e4 {[%clk 0:02:56.9]}
2... Nc6 {[%clk 0:03:00.4]} 3. d4 {[%clk 0:02:57]} 3... cxd4 {[%clk 0:03:01.3]}
4. Nxd4 {[%clk 0:02:57.9]} 4... g6 {[%clk 0:03:01.8]} 5. c4 {[%clk 0:02:57.6]}
5... Bg7 {[%clk 0:03:02.2]} 6. Be3 {[%clk 0:02:58.2]} 6... Nf6 {[%clk
0:03:02.9]} 7. Nc3 {[%clk 0:02:58.4]} 7... O-O {[%clk 0:03:03.5]} 8. Be2 {[%clk
0:02:58.5]} 8... d6 {[%clk 0:03:02.3]} 9. O-O {[%clk 0:02:58.4]} 9... Nxd4
{[%clk 0:03:02.5]} 10. Bxd4 {[%clk 0:02:58.1]} 10... Bd7 {[%clk 0:03:03.2]} 11.
h3 {[%clk 0:02:53.2]} 11... Bc6 {[%clk 0:03:03.3]} 12. Qc2 {[%clk 0:02:53.7]}
12... a5 {[%clk 0:03:02.3]} 13. Rad1 {[%clk 0:02:53.7]} 13... Nd7 {[%clk
0:03:01.8]} 14. Bxg7 {[%clk 0:02:54.1]} 14... Kxg7 {[%clk 0:03:02.7]} 15. Bg4
{[%clk 0:02:54.6]} 15... Ne5 {[%clk 0:03:02]} 16. c5 {[%clk 0:02:54.1]} 16...
Nxg4 {[%clk 0:03:00.1]} 17. hxg4 {[%clk 0:02:55]} 17... Qc8 {[%clk 0:03:00.4]}
18. cxd6 {[%clk 0:02:53.4]} 18... Qxg4 {[%clk 0:03:00.5]} 19. dxe7 {[%clk
0:02:30.3]} 19... Rfe8 {[%clk 0:03:01]} 20. Nd5 {[%clk 0:02:29.4]} 20... Bxd5
{[%clk 0:03:01.6]} 21. exd5 {[%clk 0:02:29.8]} 21... Rxe7 {[%clk 0:03:02.3]} 22.
d6 {[%clk 0:02:20.3]} 22... Rd7 {[%clk 0:03:02.9]} 23. Rd5 {[%clk 0:02:13.3]}
23... h5 {[%clk 0:02:58.5]} 24. Rfd1 {[%clk 0:01:59.7]} 24... Re8 {[%clk
0:02:41.6]} 25. Qc3+ {[%clk 0:01:53.5]} 25... Kh7 {[%clk 0:02:37.6]} 26. Qxa5
{[%clk 0:01:41.7]} 26... Re2 {[%clk 0:02:14]} 27. R5d2 {[%clk 0:01:40.6]} 27...
Re6 {[%clk 0:02:06.1]} 28. Qc5 {[%clk 0:01:31.8]} 28... Rf6 {[%clk 0:01:36.6]}
29. b4 {[%clk 0:01:09.5]} 29... h4 {[%clk 0:01:29.6]} 30. Rd4 {[%clk 0:01:03.4]}
30... Rf4 {[%clk 0:01:30]} 31. Rxf4 {[%clk 0:00:46.2]} 31... Qxf4 {[%clk
0:01:30.9]} 32. Rd4 {[%clk 0:00:42]} 32... Qf6 {[%clk 0:01:30.8]} 33. a4 {[%clk
0:00:34]} 33... Kg7 {[%clk 0:01:19.6]} 34. a5 {[%clk 0:00:32.1]} 34... Qe6
{[%clk 0:01:13.8]} 35. Rd1 {[%clk 0:00:17.9]} 35... h3 {[%clk 0:01:10.4]} 36.
Qc3+ {[%clk 0:00:16.5]} 36... Kg8 {[%clk 0:01:04.4]} 37. Qxh3 {[%clk 0:00:12.8]}
37... Rxd6 {[%clk 0:00:58.7]} 38. Rxd6 {[%clk 0:00:11.5]} 38... Qxd6 {[%clk
0:00:58.7]} 39. Qc8+ {[%clk 0:00:12]} 39... Kg7 {[%clk 0:00:39.9]} 40. Qxb7
{[%clk 0:00:11.9]} 40... Qd1+ {[%clk 0:00:37.9]} 41. Kh2 {[%clk 0:00:11.9]}
41... Qh5+ {[%clk 0:00:36.4]} 42. Kg3 {[%clk 0:00:12]} 42... g5 {[%clk
0:00:28.8]} 43. Qe4 {[%clk 0:00:06.9]} 43... Qh6 {[%clk 0:00:24.6]} 44. Qd4+
{[%clk 0:00:04.1]} 44... Kg8 {[%clk 0:00:24]} 45. b5 {[%clk 0:00:03]} 45... f5
{[%clk 0:00:17.1]} 46. Qd5+ {[%clk 0:00:02.2]} 46... Kh8 {[%clk 0:00:16.6]} 47.
Qe5+ {[%clk 0:00:01.7]} 47... Kg8 {[%clk 0:00:16]} 48. Qxf5 {[%clk 0:00:02.2]}
48... Qd6+ {[%clk 0:00:10.9]} 49. Kg4 {[%clk 0:00:01.9]} 49... Qd4+ {[%clk
0:00:11]} 50. Kxg5 {[%clk 0:00:02.1]} 50... Qd2+ {[%clk 0:00:11.3]} 51. Qf4
{[%clk 0:00:02.1]} 51... Qd5+ {[%clk 0:00:11.3]} 52. Kg4 {[%clk 0:00:02.2]}
52... Qxg2+ {[%clk 0:00:11.5]} 53. Qg3 {[%clk 0:00:02.8]} 53... Qe4+ {[%clk
0:00:11.8]} 54. Kh3+ {[%clk 0:00:02.9]} 54... Kf8 {[%clk 0:00:11.7]} 55. b6
{[%clk 0:00:03.1]} 55... Qh7+ {[%clk 0:00:11.6]} 56. Kg2 {[%clk 0:00:03.5]}
56... Qe4+ {[%clk 0:00:11.9]} 57. Qf3+ {[%clk 0:00:03.8]} 1-0